bitfinex-derivatives/quotes_BNBF0:USTF0_20250509
["timestamp","ask_amount","ask_price","bid_price","bid_amount"]
[1746761613920,0.953,626.83,626.41,0.292802]
[1746761615419,0.953,626.83,626.4,1.149]
[1746761615726,0.953,626.83,626.41,0.29286806]
[1746761620223,1.931,626.83,626.41,0.29286806]
[1746761621824,1.931,626.83,626.4,1.42660715]
[1746761622122,1.931,626.83,626.41,0.29299255]
[1746761622422,1.931,626.83,626.4,1.42660715]
[1746761622822,1.931,626.83,626.41,0.29300093]
[1746761625124,2.846,626.83,626.41,0.29300093]
[1746761625825,3.365,626.83,626.41,0.29300093]
[1746761629731,4.347,626.83,626.41,0.29300093]
[1746761630125,4.347,626.83,626.41,1.36900093]
[1746761630527,4.347,626.83,626.42,0.29300093]
[1746761632928,4.347,626.83,626.41,1.076]
[1746761633431,4.347,626.83,626.42,0.29300824]
[1746761636736,4.347,626.83,626.41,1.35360605]
[1746761637036,4.347,626.83,626.42,0.29300376]
[1746761637635,4.347,626.83,626.41,1.35360605]
[1746761638035,4.347,626.83,626.42,0.29300494]
[1746761644040,4.347,626.83,626.41,1.35360605]
[1746761644442,4.347,626.83,626.42,0.29301099]
[1746761648938,4.347,626.83,626.41,1.35361712]
[1746761654044,4.347,626.83,626.42,0.29313063]
[1746761654643,4.347,626.83,626.41,1.35361712]
[1746761655840,4.347,626.83,626.42,0.29313732]
[1746761657241,4.347,626.83,626.41,1.35361712]
[1746761658048,4.347,626.83,626.42,0.29312902]
[1746761661047,4.347,626.83,626.41,1.35366364]
[1746761665650,4.347,626.83,626.41,1.076]
[1746761665849,4.347,626.83,626.41,1.35366364]
[1746761668653,4.347,626.83,626.41,1.076]
[1746761668953,4.347,626.83,626.41,1.35366364]
[1746761671555,4.347,626.83,626.41,2.17966364]
[1746761671752,4.347,626.83,626.41,1.902]
[1746761672056,4.347,626.83,626.41,2.17966364]
[1746761674660,4.347,626.83,626.41,1.902]
[1746761675155,4.347,626.83,626.41,2.17966364]
[1746761677564,4.347,626.83,626.41,1.902]
[1746761677957,4.347,626.83,626.41,2.17966364]
[1746761680666,4.347,626.83,626.41,1.902]
[1746761680964,4.347,626.83,626.41,2.17963041]
[1746761682063,4.347,626.83,626.42,0.29307971]
[1746761682363,4.347,626.83,626.41,1.10363041]
[1746761682664,4.347,626.83,626.42,0.29307971]
[1746761682964,4.347,626.83,626.41,1.10363041]
[1746761683665,4.347,626.83,626.41,0.826]
[1746761683961,4.347,626.83,626.41,1.10363927]
[1746761684867,4.347,626.83,626.41,2.25263927]
[1746761686765,4.347,626.83,626.41,1.975]
[1746761686965,4.347,626.83,626.42,0.29308208]
[1746761688766,4.347,626.83,626.41,2.25263927]
[1746761688966,4.347,626.83,626.42,0.29308228]
[1746761689270,4.347,626.83,626.41,2.25263927]
[1746761695677,4.347,626.83,626.41,1.975]
[1746761695877,4.347,626.83,626.42,0.29313031]
[1746761701581,4.347,626.83,626.41,1.42666142]
[1746761701780,4.347,626.83,626.41,1.149]
[1746761707980,4.347,626.83,626.41,2.199]
[1746761716888,0.27780328,626.82,626.41,2.199]
[1746761717090,0.31907595,626.81,626.41,2.199]
[1746761719690,1.146,626.8,626.41,2.199]
[1746761719888,2.434,626.8,626.41,2.199]
[1746761720082,0.519,626.79,626.41,2.199]
[1746761720893,0.795,626.78,626.41,2.199]
[1746761727493,0.31909631,626.77,626.41,2.199]
[1746761731896,0.27779552,626.76,626.41,2.199]
[1746761734700,0.31909631,626.77,626.41,2.199]
[1746761734894,0.59688407,626.77,626.41,2.199]
[1746761735399,0.987,626.76,626.41,2.199]
[1746761735994,0.3191065,626.75,626.41,2.199]
[1746761743904,0.982,626.74,626.41,2.199]
[1746761744104,0.31911668,626.73,626.41,2.199]
[1746761753209,0.27782213,626.72,626.41,2.199]
[1746761753402,0.31912686,626.71,626.41,2.199]
[1746761755913,0.27782435,626.7,626.41,2.199]
[1746761756612,0.31913705,626.69,626.41,2.199]
[1746761758014,1.42213705,626.69,626.41,2.199]
[1746761759014,0.27782767,626.68,626.41,2.199]
[1746761759315,0.31914723,626.67,626.41,2.199]
[1746761762116,0.27782767,626.66,626.41,2.199]
[1746761762310,0.31915742,626.65,626.41,2.199]
[1746761764912,0.277831,626.64,626.41,2.199]
[1746761765112,0.31916761,626.63,626.41,2.199]
[1746761768011,0.59700083,626.63,626.41,2.199]
[1746761770721,0.31916761,626.63,626.41,2.199]
[1746761771319,0.59699528,626.63,626.41,2.199]
[1746761773725,0.31916761,626.63,626.41,2.199]
[1746761774119,0.59700194,626.63,626.41,2.199]
[1746761776730,0.31916761,626.63,626.41,2.199]
[1746761777027,0.59700194,626.63,626.41,2.199]
[1746761778030,0.31916761,626.63,626.41,2.199]
[1746761789837,1.008,626.62,626.41,2.199]
[1746761819869,0.982,626.64,626.41,2.199]
[1746761822871,1.007,626.63,626.41,2.199]
[1746761833580,1.989,626.63,626.41,2.199]
[1746761842984,0.982,626.63,626.41,2.199]
[1746761846685,0.765,626.62,626.41,2.199]
[1746761870095,0.31917779,626.61,626.41,2.199]
[1746761879505,0.808,626.6,626.41,2.199]
[1746761883309,0.31918798,626.59,626.41,2.199]
[1746761895115,1.06718798,626.59,626.41,2.199]
[1746761901220,1.06718798,626.59,626.41,1.05]
[1746761906317,1.06718798,626.59,626.08,0.27776558]
[1746761908827,1.06718798,626.59,625.64,1.01440183]
[1746761909128,1.06718798,626.59,625.65,0.971]
[1746761909728,1.06718798,626.59,625.66,0.29329076]
[1746761910127,1.06718798,626.59,625.67,0.27784986]
[1746761910527,1.06718798,626.59,625.68,0.29329076]
[1746761915325,1.06718798,626.59,625.73,1.01440183]
[1746761915724,1.06718798,626.59,625.74,0.29329076]
[1746761917733,1.06718798,626.59,625.68,0.29329076]
[1746761920229,0.31918798,626.59,625.68,0.29329076]
[1746761920534,0.31918798,626.59,625.69,1.01440183]
[1746761920834,0.31918798,626.59,625.7,0.29329076]
[1746761923236,0.31918798,626.59,625.69,0.29329076]
[1746761924031,1.136,626.58,625.69,0.29329076]
[1746761924236,0.31919817,626.57,625.68,0.27779108]
[1746761924536,0.31919817,626.57,625.69,0.29329076]
[1746761927241,0.31919817,626.57,625.93,1.01440183]
[1746761927538,0.31919817,626.57,625.94,0.29329076]
[1746761930345,0.31919817,626.57,625.95,1.01440183]
[1746761930838,0.31919817,626.57,625.96,0.29329076]
[1746761932845,0.31919817,626.57,625.98,1.01440183]
[1746761933544,0.31919817,626.57,625.99,0.29329076]
[1746761936940,0.31919817,626.57,625.97,0.29329076]
[1746761938242,1.31219817,626.57,625.92,0.29329076]
[1746761939041,1.31219817,626.57,625.89,0.29329076]
[1746761939246,1.31219817,626.57,625.91,0.27777778]
[1746761939851,1.31219817,626.57,625.92,0.29329076]
[1746761942749,1.31219817,626.57,625.91,0.27777778]
[1746761942950,1.31219817,626.57,625.92,1.01440183]
[1746761943351,1.31219817,626.57,625.92,1.30759526]
[1746761943648,1.31219817,626.57,625.93,0.29319343]
[1746761945853,1.31219817,626.57,625.93,1.30759526]
[1746761946253,1.31219817,626.57,625.94,0.29319343]
[1746761949054,1.31219817,626.57,626.01,1.01440183]
[1746761949352,1.31219817,626.57,626.02,0.29319343]
[1746761952150,1.31219817,626.57,626.04,1.01440183]
[1746761952351,1.31219817,626.57,626.05,0.29319343]
[1746761952857,2.35619817,626.57,626.05,0.29319343]
[1746761954654,2.35619817,626.57,626.1,1.01440183]
[1746761955058,2.35619817,626.57,626.11,0.29319343]
[1746761956860,2.35619817,626.57,626.11,1.30759526]
[1746761957260,2.35619817,626.57,626.12,0.29319343]
[1746761959061,2.35619817,626.57,626.11,1.01440183]
[1746761959358,2.35619817,626.57,626.12,0.29319403]
[1746761960664,2.35619817,626.57,626.11,0.29319403]
[1746761961866,2.35619817,626.57,626.12,0.922]
[1746761962364,2.35619817,626.57,626.13,0.29319403]
[1746761968665,2.35619817,626.57,626.13,1.30759586]
[1746761968870,2.35619817,626.57,626.14,0.29319403]
[1746761973172,2.35619817,626.57,626.13,1.01440183]
[1746761973670,2.35619817,626.57,626.14,0.29313365]
[1746761978076,2.35619817,626.57,626.13,0.57085268]
[1746761978475,2.35619817,626.57,626.14,0.29313365]
[1746761981180,2.35619817,626.57,626.13,0.57085268]
[1746761981983,2.35619817,626.57,626.14,0.29313365]
[1746761986293,2.35619817,626.57,626.17,1.01440183]
[1746761986485,2.35619817,626.57,626.18,0.29313365]
[1746761987793,2.35619817,626.57,626.17,1.01440183]
[1746761988089,2.35619817,626.57,626.18,1.30753562]
[1746761988394,2.35619817,626.57,626.19,0.29313379]
[1746761990495,2.35619817,626.57,626.14,0.29313379]
[1746761993098,2.35619817,626.57,626.13,0.29313379]
[1746761993292,2.35619817,626.57,626.13,0.57085393]
[1746761993693,2.35619817,626.57,626.13,0.27772014]
[1746761993997,2.35619817,626.57,626.14,0.29311944]
[1746761996801,2.35619817,626.57,626.13,0.27772014]
[1746761997402,2.35619817,626.57,626.14,0.29311773]
[1746761998296,2.35619817,626.57,626.15,0.913]
[1746761998602,2.35619817,626.57,626.16,0.29311773]
[1746761999201,2.35619817,626.57,626.21,1.01440183]
[1746761999497,2.35619817,626.57,626.22,0.29311773]
[1746762001206,2.35619817,626.57,626.23,1.01440183]
[1746762001703,2.35619817,626.57,626.24,0.29311773]
[1746762004698,2.35619817,626.57,626.16,0.29311773]
[1746762005105,2.35619817,626.57,626.15,1.19073455]
[1746762005405,2.35619817,626.57,626.16,0.29314494]
[1746762007305,2.35619817,626.57,626.15,1.19073455]
[1746762007704,2.35619817,626.57,626.15,0.913]
[1746762008003,2.35619817,626.57,626.15,1.19068358]
[1746762008206,3.43619817,626.57,626.16,0.29305404]
[1746762008505,4.64519817,626.57,626.16,0.29305404]
[1746762012403,4.64519817,626.57,626.3,1.01440183]
[1746762013107,4.64519817,626.57,626.31,0.29305404]
[1746762014407,4.64519817,626.57,626.31,1.30745587]
[1746762014908,4.64519817,626.57,626.32,0.29305404]
[1746762015207,4.64519817,626.57,626.33,1.041]
[1746762015810,4.64519817,626.57,626.34,0.29305404]
[1746762016303,4.64519817,626.57,626.34,1.30745587]
[1746762016707,4.64519817,626.57,626.35,0.29305404]
[1746762018909,4.64519817,626.57,626.35,1.30745587]
[1746762019211,4.64519817,626.57,626.36,0.29305404]
[1746762019606,3.65219817,626.57,626.36,0.29305404]
[1746762021205,3.65219817,626.57,626.37,0.777]
[1746762021610,3.65219817,626.57,626.38,0.29305404]
[1746762022510,2.44319817,626.57,626.38,0.29305404]
[1746762025112,1.36319817,626.57,626.38,0.29305404]
[1746762030232,1.36319817,626.57,626.39,1.109]
[1746762030620,1.36319817,626.57,626.4,0.29305404]
[1746762031014,0.31919817,626.57,626.4,0.29305404]
[1746762035020,0.31919817,626.57,626.39,1.109]
[1746762035321,0.31919817,626.57,626.4,0.29304891]
[1746762036719,0.31919817,626.57,626.39,1.109]
[1746762045925,0.31919817,626.57,626.4,0.29308535]
[1746762052435,0.31919817,626.57,626.39,1.38668247]
[1746762052935,0.31919817,626.57,626.39,1.109]
[1746762053337,0.31919817,626.57,626.39,1.38668247]
[1746762055951,0.31919817,626.57,626.39,1.109]
[1746762056351,0.31919817,626.57,626.39,2.26667914]
[1746762056948,1.15119817,626.57,626.39,2.26667914]
[1746762058840,0.832,626.57,626.4,0.29298447]
[1746762067845,0.832,626.57,626.45,1.01440183]
[1746762068247,0.832,626.57,626.46,0.29298447]
[1746762070044,0.832,626.57,626.39,2.26663484]
[1746762070347,0.832,626.57,626.4,0.29298191]
[1746762071847,0.832,626.57,626.39,2.26663484]
[1746762072148,0.832,626.57,626.4,0.29297968]
[1746762075048,0.832,626.57,626.39,2.26662819]
[1746762075452,0.832,626.57,626.4,0.29294821]
[1746762079952,0.974,626.61,626.4,0.29294821]
[1746762081359,0.974,626.61,626.39,2.26662819]
[1746762081762,0.699,626.75,626.39,2.26662819]
[1746762082561,0.994,626.74,626.39,2.26662819]
[1746762082858,0.994,626.74,626.39,1.989]
[1746762083062,0.994,626.74,626.4,0.29295793]
[1746762084762,0.816,626.73,626.4,0.29295793]
[1746762087463,0.816,626.73,626.4,1.11695793]
[1746762087762,0.816,626.73,626.41,0.29295793]
[1746762090564,0.816,626.73,626.45,1.01440183]
[1746762090863,0.816,626.73,626.46,0.29295793]
[1746762091164,0.816,626.73,626.45,1.01440183]
[1746762091464,0.816,626.73,626.46,0.29294819]
[1746762092563,0.816,626.73,626.43,0.29294819]
[1746762094570,0.816,626.73,626.43,1.30735002]
[1746762094966,0.816,626.73,626.44,0.29294819]
[1746762095265,0.816,626.73,626.43,1.01440183]
[1746762095467,0.816,626.73,626.44,0.29294899]
[1746762096968,0.816,626.73,626.5,1.01440183]
[1746762097264,0.816,626.73,626.51,0.29294899]
[1746762098767,0.519,626.76,626.51,0.29294899]
[1746762099169,0.27759165,627.63,626.51,0.29294899]
[1746762099470,0.31866923,627.61,626.51,1.30735082]
[1746762099871,0.31866923,627.61,626.52,0.29294899]
[1746762100574,0.878,627.6,626.52,0.29294899]
[1746762100775,1.685,627.6,626.52,0.29294899]
[1746762100975,0.31868447,627.58,626.52,0.29294899]
[1746762101675,0.31868447,627.58,626.52,1.30735082]
[1746762101876,1.30868447,627.58,626.53,0.29294899]
[1746762103074,1.82668447,627.58,626.53,0.29294899]
[1746762103275,1.82668447,627.58,626.53,1.30735082]
[1746762103875,1.82668447,627.58,626.54,0.29294899]
[1746762105176,1.82668447,627.58,626.53,1.89540183]
[1746762105676,1.82668447,627.58,626.58,1.01440183]
[1746762107279,2.10418537,627.58,626.58,1.01440183]
[1746762107978,2.10418537,627.58,626.53,0.881]
[1746762109875,1.82668447,627.58,626.53,0.881]
[1746762111882,1.82668447,627.58,626.54,0.29296287]
[1746762113981,2.96968447,627.58,626.54,0.29296287]
[1746762118590,3.75468447,627.58,626.54,0.29296287]
[1746762119188,0.27750754,627.57,626.54,0.29296287]
[1746762119384,0.3186997,627.55,626.54,0.29296287]
[1746762123693,0.3186997,627.55,626.53,1.15850754]
[1746762124593,0.3186997,627.55,626.53,0.881]
[1746762125193,0.27754405,627.54,626.53,1.15854405]
[1746762125395,0.31871494,627.52,626.53,1.15854405]
[1746762126192,0.727,627.51,626.53,1.15854405]
[1746762126395,1.52,627.51,626.53,1.15854405]
[1746762126994,0.519,627.5,626.53,1.15854405]
[1746762128001,0.519,627.5,626.53,0.881]
[1746762128195,0.27755069,627.49,626.53,1.15855069]
[1746762130600,0.31874033,627.47,626.53,1.15855069]
[1746762130801,0.31874033,627.47,626.53,0.881]
[1746762131101,0.27755291,627.46,626.53,1.15855291]
[1746762131298,0.31875557,627.44,626.53,1.15855291]
[1746762131705,0.31875557,627.44,626.53,0.881]
[1746762134208,0.27757615,627.43,626.53,0.881]
[1746762134405,0.31877081,627.41,626.53,0.881]
[1746762135911,0.963,627.4,626.53,0.881]
[1746762137403,0.31878606,627.38,626.53,0.881]
[1746762138104,0.31878606,627.38,626.53,2.05]
[1746762140213,1.08462044,627.37,626.53,2.05]
[1746762140612,0.3188013,627.35,626.53,2.05]
[1746762143210,0.27763705,627.34,626.53,2.05]
[1746762143414,0.31881655,627.32,626.53,2.05]
[1746762145512,1.30881655,627.32,626.53,2.05]
[1746762146116,2.50681655,627.32,626.53,2.05]
[1746762149220,0.27760494,627.31,626.53,2.05]
[1746762149518,0.31882671,627.3,626.53,2.05]
[1746762152022,1.096,627.29,626.53,2.05]
[1746762152221,1.8925994,627.29,626.53,2.05]
[1746762152422,0.31883688,627.28,626.53,2.05]
[1746762160321,1.016,627.27,626.53,2.05]
[1746762160622,0.31884704,627.26,626.53,2.05]
[1746762161923,1.016,627.27,626.53,2.05]
[1746762162225,0.27763041,627.25,626.53,2.05]
[1746762164628,0.883,627.24,626.53,2.05]
[1746762167129,0.27763373,627.23,626.53,2.05]
[1746762168929,1.228,627.22,626.53,2.05]
[1746762170438,1.50563041,627.22,626.53,2.05]
[1746762172937,1.046,627.21,626.53,2.05]
[1746762174841,0.519,627.2,626.53,2.05]
[1746762179444,0.27764591,627.19,626.53,2.05]
[1746762181944,0.519,627.2,626.53,2.05]
[1746762182244,0.27765588,627.18,626.53,2.05]
[1746762183248,0.872,627.17,626.53,2.05]
[1746762185149,0.27765921,627.16,626.53,2.05]
[1746762186448,1.224,627.15,626.53,2.05]
[1746762187147,1.181,627.14,626.53,2.05]
[1746762188245,0.27766253,627.13,626.53,2.05]
[1746762189748,0.819,627.12,626.53,2.05]
[1746762194254,0.27771571,627.11,626.53,2.05]
[1746762199961,0.819,627.12,626.53,2.05]
[1746762200362,0.519,627.11,626.53,2.05]
[1746762201261,0.27770684,627.1,626.53,2.05]
[1746762202957,0.519,627.11,626.53,2.05]
[1746762203257,0.27769909,627.09,626.53,2.05]
[1746762205163,0.72,627.08,626.53,2.05]
[1746762206464,0.27770241,627.07,626.53,2.05]
[1746762211068,1.26870241,627.07,626.53,2.05]
[1746762211969,0.991,627.07,626.53,2.05]
[1746762212467,0.27770352,627.06,626.53,2.05]
[1746762217972,0.991,627.07,626.53,2.05]
[1746762218267,0.27770352,627.05,626.53,2.05]
[1746762219079,0.519,627.04,626.53,2.05]
[1746762221376,0.27772347,627.03,626.53,2.05]
[1746762221678,1.026,627.02,626.53,2.05]
[1746762221873,2.233,627.02,626.53,2.05]
[1746762224278,0.26653568,627.01,626.53,2.05]
[1746762226178,1.354,627.0,626.53,2.05]
[1746762226478,0.26653568,626.99,626.53,2.05]
[1746762229680,1.354,627.0,626.53,2.05]
[1746762230077,0.26653946,626.99,626.53,2.05]
[1746762230278,0.5442729,626.99,626.53,2.05]
[1746762230679,0.26653946,626.98,626.53,2.05]
[1746762231275,0.27773344,626.99,626.53,2.05]
[1746762231580,0.26653944,626.98,626.53,2.05]
[1746762234583,0.27773344,626.99,626.53,2.05]
[1746762238686,0.519,626.98,626.53,2.05]
[1746762239387,0.27773455,626.97,626.53,2.05]
[1746762241983,0.519,626.98,626.53,2.05]
[1746762242385,0.27773566,626.96,626.53,2.05]
[1746762242888,0.726,626.95,626.53,2.05]
[1746762244090,1.612,626.95,626.53,2.05]
[1746762245286,0.31900979,626.94,626.53,2.05]
[1746762246691,1.13600979,626.94,626.53,2.05]
[1746762248190,0.27775339,626.93,626.53,2.05]
[1746762250991,1.13600979,626.94,626.53,2.05]
[1746762251295,0.27775339,626.92,626.53,2.05]
[1746762253996,1.13600979,626.94,626.53,2.05]
[1746762254297,0.27775339,626.91,626.53,2.05]
[1746762256093,1.019,626.9,626.53,2.05]
[1746762257299,0.59679305,626.89,626.53,2.05]
[1746762258500,0.956,626.88,626.53,2.05]
[1746762259001,0.31904541,626.87,626.53,2.05]
[1746762260304,0.27776004,626.86,626.53,2.05]
[1746762260901,0.31905559,626.85,626.53,2.05]
[1746762263303,0.27774896,626.84,626.53,2.05]
[1746762263506,0.31906577,626.83,626.53,2.05]
[1746762266212,1.25606577,626.83,626.53,2.05]
[1746762274919,2.24806577,626.83,626.53,2.05]
[1746762284417,0.27775672,626.82,626.53,2.05]
[1746762284621,0.31907595,626.81,626.53,2.05]
[1746762288528,1.11,626.8,626.53,2.05]
[1746762288821,0.31908613,626.79,626.53,2.05]
[1746762290428,0.27779108,626.78,626.53,2.05]
[1746762290629,0.98679108,626.78,626.53,2.05]
[1746762290829,0.31909631,626.77,626.53,2.05]
[1746762293229,0.27779552,626.76,626.53,2.05]
[1746762293529,0.3191065,626.75,626.53,2.05]
[1746762296332,0.27780217,626.74,626.53,2.05]
[1746762296523,0.31911668,626.73,626.53,2.05]
[1746762299432,0.27779995,626.72,626.53,2.05]
[1746762299624,0.31912686,626.71,626.53,2.05]
[1746762302332,0.27780217,626.7,626.53,2.05]
[1746762302531,0.27780217,626.7,626.53,0.881]
[1746762302733,0.31913705,626.69,625.25,1.01440183]
[1746762303234,0.31913705,626.69,625.26,0.29341618]
[1746762303426,0.31913705,626.69,625.26,0.57135591]
[1746762303728,1.05813705,626.69,625.27,0.29341618]
[1746762304928,1.05813705,626.69,625.25,1.01440183]
[1746762305228,1.05813705,626.69,625.26,1.37293973]
[1746762305530,1.05813705,626.69,625.26,1.66634094]
[1746762305727,2.64113705,626.69,625.27,0.29340121]
[1746762306633,2.64113705,626.69,625.28,0.29340121]
[1746762307034,2.64113705,626.69,625.29,0.29340121]
[1746762307234,3.37013705,626.69,625.29,0.29340121]
[1746762307428,3.37013705,626.69,625.3,0.29340121]
[1746762307732,3.37013705,626.69,625.31,0.29340121]
[1746762308033,3.37013705,626.69,625.27,0.976]
[1746762308329,3.37013705,626.69,625.28,0.57133904]
[1746762308733,3.37013705,626.69,625.29,0.29340042]
[1746762308932,3.37013705,626.69,625.51,1.01440183]
[1746762309434,3.37013705,626.69,625.52,0.29340042]
[1746762311236,0.27791864,626.68,625.51,1.01440183]
[1746762311436,0.31915233,626.66,625.51,1.01440183]
[1746762311736,0.31915233,626.66,625.52,0.2934024]
[1746762313536,0.31915233,626.66,625.51,1.01440183]
[1746762313837,0.30421409,626.66,625.51,1.01440183]
[1746762314235,0.27795527,626.65,625.51,1.01440183]
[1746762315136,0.27795527,626.65,625.43,0.27795527]
[1746762317043,0.30421409,626.66,625.27,0.976]
[1746762317233,0.30421409,626.66,625.43,0.27798858]
[1746762317436,0.27798858,626.64,625.43,0.27798858]
[1746762317633,0.27798858,626.64,625.27,0.976]
[1746762318360,0.27798858,626.64,625.28,0.27798858]
[1746762318571,0.27798858,626.64,625.28,0.5714895]
[1746762318961,0.89,626.63,625.29,0.29350092]
[1746762320443,0.2779908,626.62,625.28,0.57149172]
[1746762320641,0.31918289,626.6,625.28,0.57149172]
[1746762320846,0.31918289,626.6,625.29,0.29350092]
[1746762323643,0.83,626.59,625.29,0.29350092]
[1746762323843,0.31919817,626.57,625.29,0.29350092]
[1746762326646,0.31919817,626.57,625.29,1.36350092]
[1746762326841,0.31919817,626.57,625.3,0.29350092]
[1746762327150,0.84319817,626.57,625.3,0.29350092]
[1746762331149,1.86519817,626.57,625.3,0.29350092]
[1746762331951,2.55019817,626.57,625.3,0.29350092]
[1746762333155,2.55019817,626.57,625.35,1.01440183]
[1746762333547,2.55019817,626.57,625.36,0.29350092]
[1746762334054,2.55019817,626.57,625.37,0.29350092]
[1746762334251,2.55019817,626.57,625.35,1.01440183]
[1746762334553,2.55019817,626.57,625.36,0.29337408]
[1746762334959,2.55019817,626.57,625.37,0.29337408]
[1746762335261,2.55019817,626.57,625.38,0.29337408]
[1746762335562,2.55019817,626.57,625.39,0.29337408]
[1746762335864,2.55019817,626.57,625.58,1.01440183]
[1746762336164,2.55019817,626.57,625.59,0.29337408]
[1746762339866,2.55019817,626.57,625.57,0.29337408]
[1746762340067,2.55019817,626.57,625.6,0.29337408]
[1746762340867,2.55019817,626.57,625.58,1.01440183]
[1746762341262,2.55019817,626.57,625.59,0.29337408]
[1746762342369,2.02619817,626.57,625.59,0.29337408]
[1746762343571,2.02619817,626.57,625.5,0.29337408]
[1746762344170,2.02619817,626.57,625.3,0.29337408]
[1746762344372,2.02619817,626.57,625.49,0.27790311]
[1746762344573,2.02619817,626.57,625.3,0.29337408]
[1746762345473,2.02619817,626.57,625.31,0.2779253]
[1746762345873,2.02619817,626.57,625.32,0.29337408]
[1746762346069,2.55019817,626.57,625.32,0.29337408]
[1746762346771,2.55019817,626.57,625.33,0.29335388]
[1746762347073,2.55019817,626.57,625.32,0.29335388]
[1746762347475,2.55019817,626.57,625.33,0.29335388]
[1746762347971,2.55019817,626.57,625.34,0.29335388]
[1746762348367,2.55019817,626.57,625.33,0.29335388]
[1746762348968,2.55019817,626.57,625.47,1.01440183]
[1746762349473,2.55019817,626.57,625.48,0.29335388]
[1746762350369,2.55019817,626.57,625.49,0.883]
[1746762350575,3.40119817,626.57,625.49,1.669]
[1746762350775,3.40119817,626.57,625.5,0.29335388]
[1746762353274,4.46419817,626.57,625.5,0.29335388]
[1746762357575,4.46419817,626.57,625.52,1.01440183]
[1746762358070,4.46419817,626.57,625.53,0.29335388]
[1746762360480,4.46419817,626.57,625.6,1.01440183]
[1746762360676,4.46419817,626.57,625.61,0.29335388]
[1746762363381,4.46419817,626.57,625.62,0.29335388]
[1746762363581,4.46419817,626.57,625.64,1.01440183]
[1746762364082,4.46419817,626.57,625.65,0.29335388]
[1746762366384,4.46419817,626.57,625.79,1.01440183]
[1746762366584,4.46419817,626.57,625.8,0.29335388]
[1746762366782,1.85519817,626.57,625.8,0.29335388]
[1746762367181,1.85519817,626.57,625.8,1.16635388]
[1746762367786,1.85519817,626.57,625.81,0.29335388]
[1746762368787,1.85519817,626.57,625.84,1.01440183]
[1746762369385,1.85519817,626.57,625.85,0.29335388]
[1746762370887,1.85519817,626.57,625.87,1.01440183]
[1746762371291,1.85519817,626.57,625.88,0.29335388]
[1746762373384,1.85519817,626.57,625.81,0.29335388]
[1746762374590,1.85519817,626.57,625.8,0.873]
[1746762383496,2.37919817,626.57,625.8,0.873]
[1746762384498,2.37919817,626.57,625.81,0.29336058]
[1746762387602,2.37919817,626.57,625.8,0.873]
[1746762387800,2.37919817,626.57,625.81,0.29336459]
[1746762388501,2.37919817,626.57,625.8,0.873]
[1746762389302,2.37919817,626.57,625.81,0.29337417]
[1746762389602,3.14619817,626.57,625.81,0.29337417]
[1746762392398,4.09319817,626.57,625.81,0.29337417]
[1746762395003,4.09319817,626.57,625.8,2.09687537]
[1746762395206,4.09319817,626.57,625.81,0.29337309]
[1746762398210,4.09319817,626.57,625.8,1.819]
[1746762398411,4.09319817,626.57,625.8,2.09687537]
[1746762401113,4.09319817,626.57,625.8,1.819]
[1746762401416,4.09319817,626.57,625.8,2.0968909]
[1746762401713,4.09319817,626.57,625.8,1.819]
[1746762419326,4.09319817,626.57,625.81,0.29343484]
[1746762419529,4.09319817,626.57,625.8,1.819]
[1746762419726,4.09319817,626.57,625.81,0.29343815]
[1746762420725,4.09319817,626.57,625.8,0.946]
[1746762422228,4.09319817,626.57,625.8,1.915]
[1746762443345,0.27792863,626.56,625.8,1.915]
[1746762443548,0.31920836,626.55,625.8,1.915]
[1746762446246,1.858,626.54,625.8,1.915]
[1746762446448,0.31921855,626.53,625.8,1.915]
[1746762446746,1.24421855,626.53,625.8,1.915]
[1746762447548,1.677,626.52,625.8,1.915]
[1746762447848,0.31922874,626.51,625.8,1.915]
[1746762457857,0.31922874,626.51,625.81,0.29337432]
[1746762458656,0.31922874,626.51,625.76,0.29337432]
[1746762460658,1.118,626.5,625.76,0.29337432]
[1746762460855,0.31923893,626.49,625.77,1.11]